[Event "*** Qualifier 2: Titled Tuesday 3|2 Blitz"]
[Site "Chess.com"]
[Date "2017.04.11"]
[Round "10"]
[White "Generalas"]
[Black "luisgui16"]
[Result "0-1"]
[WhiteElo "2209"]
[BlackElo "2134"]
[TimeControl "180+2"]
[EndTime "15:23:00 PDT"]
[Termination "luisgui16 won by resignation"]

1. e4 {[%clk 0:03:02]} 1... g6 {[%clk 0:02:57.2]} 2. h4 {[%clk 0:03:00.9]} 2...
Bg7 {[%clk 0:02:56.4]} 3. h5 {[%clk 0:03:01.8]} 3... c5 {[%clk 0:02:55.7]} 4.
Nf3 {[%clk 0:02:56.4]} 4... Nc6 {[%clk 0:02:56.1]} 5. c3 {[%clk 0:02:54.4]} 5...
d5 {[%clk 0:02:55.6]} 6. Bd3 {[%clk 0:02:23.5]} 6... Bg4 {[%clk 0:02:51.5]} 7.
hxg6 {[%clk 0:02:20.1]} 7... hxg6 {[%clk 0:02:51.6]} 8. Rxh8 {[%clk 0:02:19.5]}
8... Bxh8 {[%clk 0:02:53.5]} 9. Qa4 {[%clk 0:02:08.5]} 9... Bxf3 {[%clk
0:02:45.5]} 10. gxf3 {[%clk 0:02:08.2]} 10... Nf6 {[%clk 0:02:47.4]} 11. Na3
{[%clk 0:01:58.4]} 11... Qd7 {[%clk 0:02:40.6]} 12. Bb5 {[%clk 0:01:53.4]} 12...
a6 {[%clk 0:02:32.7]} 13. d3 {[%clk 0:01:50.7]} 13... O-O-O {[%clk 0:02:29.8]}
14. Bxc6 {[%clk 0:01:40.9]} 14... Qxc6 {[%clk 0:02:31.7]} 15. Qxc6+ {[%clk
0:01:41.7]} 15... bxc6 {[%clk 0:02:32.5]} 16. Ke2 {[%clk 0:01:39.7]} 16... Kd7
{[%clk 0:02:24.4]} 17. Be3 {[%clk 0:01:38.6]} 17... Rb8 {[%clk 0:02:20.9]} 18.
Rb1 {[%clk 0:01:28.3]} 18... Kd6 {[%clk 0:02:21.2]} 19. b3 {[%clk 0:01:01.2]}
19... Nd7 {[%clk 0:02:18.7]} 20. Bd2 {[%clk 0:00:58.6]} 20... a5 {[%clk
0:02:07.9]} 21. Rh1 {[%clk 0:00:53.8]} 21... a4 {[%clk 0:02:06.7]} 22. bxa4
{[%clk 0:00:51.6]} 22... Bf6 {[%clk 0:02:05.9]} 23. Rh7 {[%clk 0:00:50.9]} 23...
Rb2 {[%clk 0:02:05.6]} 24. f4 {[%clk 0:00:45.7]} 24... Bxc3 {[%clk 0:02:05.1]}
25. Nb1 {[%clk 0:00:42.7]} 25... d4 {[%clk 0:02:01.7]} 26. Rh1 {[%clk
0:00:35.3]} 26... Rxa2 {[%clk 0:02:00.1]} 27. Rc1 {[%clk 0:00:31.1]} 27... Bxd2
{[%clk 0:01:51.3]} 28. Nxd2 {[%clk 0:00:33]} 28... Nb6 {[%clk 0:01:52]} 29. a5
{[%clk 0:00:18]} 29... Rxa5 {[%clk 0:01:51.5]} 30. Nb3 {[%clk 0:00:17.4]} 30...
Rb5 {[%clk 0:01:52.8]} 31. Nd2 {[%clk 0:00:16.2]} 31... Rb2 {[%clk 0:01:53.4]}
32. Rb1 {[%clk 0:00:13.9]} 32... Rxb1 {[%clk 0:01:50.8]} 33. Nxb1 {[%clk
0:00:15.8]} 33... c4 {[%clk 0:01:52.2]} 34. dxc4 {[%clk 0:00:16]} 34... Kc5
{[%clk 0:01:53]} 35. Kd3 {[%clk 0:00:17.7]} 35... Nxc4 {[%clk 0:01:52.9]} 36. e5
{[%clk 0:00:17.4]} 36... Kd5 {[%clk 0:01:43.4]} 37. f3 {[%clk 0:00:17.6]} 37...
e6 {[%clk 0:01:42.9]} 38. Ke2 {[%clk 0:00:17.7]} 38... Kc5 {[%clk 0:01:41.8]}
39. Kd3 {[%clk 0:00:18.6]} 39... Kd5 {[%clk 0:01:39]} 40. Ke2 {[%clk 0:00:19.6]}
40... g5 {[%clk 0:01:30.8]} 41. fxg5 {[%clk 0:00:17.2]} 41... Nxe5 {[%clk
0:01:31]} 42. Nd2 {[%clk 0:00:15.2]} 42... c5 {[%clk 0:01:32.1]} 43. f4 {[%clk
0:00:13.3]} 43... Nc4 {[%clk 0:01:31.5]} 44. Nf3 {[%clk 0:00:13.8]} 44... Ke4
{[%clk 0:01:29.1]} 45. Nh4 {[%clk 0:00:10.3]} 45... Kxf4 {[%clk 0:01:28.4]} 46.
g6 {[%clk 0:00:11.5]} 46... fxg6 {[%clk 0:01:28.8]} 47. Nxg6+ {[%clk 0:00:13.4]}
47... Ke4 {[%clk 0:01:30.1]} 48. Nf8 {[%clk 0:00:12.3]} 48... e5 {[%clk
0:01:30.6]} 49. Nd7 {[%clk 0:00:13]} 49... Kd5 {[%clk 0:01:29.8]} 50. Nf6+
{[%clk 0:00:13.2]} 50... Ke6 {[%clk 0:01:29.8]} 51. Ne4 {[%clk 0:00:14.1]} 51...
Kd5 {[%clk 0:01:29.3]} 52. Nf6+ {[%clk 0:00:15.3]} 52... Kc6 {[%clk 0:01:30]}
53. Kd3 {[%clk 0:00:15.5]} 53... Nd6 {[%clk 0:01:29.7]} 54. Ng4 {[%clk
0:00:15.5]} 54... e4+ {[%clk 0:01:30.2]} 55. Kd2 {[%clk 0:00:16.5]} 55... c4
{[%clk 0:01:31]} 56. Nf6 {[%clk 0:00:15.2]} 56... e3+ {[%clk 0:01:30.3]} 57. Ke2
{[%clk 0:00:16.1]} 57... Kc5 {[%clk 0:01:30.7]} 58. Nd7+ {[%clk 0:00:16.8]}
58... Kd5 {[%clk 0:01:31.4]} 59. Nf6+ {[%clk 0:00:17.6]} 59... Ke5 {[%clk
0:01:31]} 60. Ng4+ {[%clk 0:00:18.2]} 60... Kf5 {[%clk 0:01:31.8]} 61. Nh6+
{[%clk 0:00:16.2]} 61... Ke4 {[%clk 0:01:32.3]} 62. Ng4 {[%clk 0:00:15.2]} 62...
d3+ {[%clk 0:01:32.6]} 63. Ke1 {[%clk 0:00:15.3]} 63... c3 {[%clk 0:01:33.5]}
64. Nf6+ {[%clk 0:00:15.5]} 64... Kf3 {[%clk 0:01:34.2]} 65. Nd5 {[%clk
0:00:16.2]} 65... c2 {[%clk 0:01:35]} 0-1

[Event "*** Qualifier 2: Titled Tuesday 3|2 Blitz"]
[Site "Chess.com"]
[Date "2017.04.11"]
[Round "10"]
[White "Vrolijk"]
[Black "prochn"]
[Result "1-0"]
[WhiteElo "2293"]
[BlackElo "2169"]
[TimeControl "180+2"]
[EndTime "15:23:08 PDT"]
[Termination "Vrolijk won by checkmate"]

1. Nf3 {[%clk 0:03:01]} 1... d5 {[%clk 0:03:00.7]} 2. c4 {[%clk 0:02:58]} 2...
c6 {[%clk 0:03:01.8]} 3. e3 {[%clk 0:02:53.1]} 3... Nf6 {[%clk 0:03:01.7]} 4. d4
{[%clk 0:02:34.3]} 4... a6 {[%clk 0:02:59.9]} 5. Nc3 {[%clk 0:02:31.5]} 5... Bf5
{[%clk 0:02:56.9]} 6. Ne5 {[%clk 0:02:26.5]} 6... e6 {[%clk 0:02:51.7]} 7. g4
{[%clk 0:02:23.2]} 7... Be4 {[%clk 0:02:45.2]} 8. f3 {[%clk 0:02:08]} 8... Bg6
{[%clk 0:02:24.7]} 9. h4 {[%clk 0:02:06.1]} 9... h5 {[%clk 0:01:38.1]} 10. Nxg6
{[%clk 0:02:05.3]} 10... fxg6 {[%clk 0:01:40]} 11. Qc2 {[%clk 0:01:58.7]} 11...
Kf7 {[%clk 0:01:30.9]} 12. g5 {[%clk 0:01:55.5]} 12... Ng8 {[%clk 0:01:31.5]}
13. Bd3 {[%clk 0:01:57.1]} 13... Ne7 {[%clk 0:01:32.3]} 14. cxd5 {[%clk
0:01:46.6]} 14... cxd5 {[%clk 0:01:31.9]} 15. Bd2 {[%clk 0:01:22.2]} 15... Nbc6
{[%clk 0:01:32.9]} 16. a3 {[%clk 0:01:21.6]} 16... Nf5 {[%clk 0:01:28.6]} 17.
O-O-O {[%clk 0:01:21.4]} 17... Rc8 {[%clk 0:01:26.7]} 18. Kb1 {[%clk 0:01:22.4]}
18... b5 {[%clk 0:01:25.5]} 19. Bxf5 {[%clk 0:01:16.9]} 19... gxf5 {[%clk
0:01:24.6]} 20. Qd3 {[%clk 0:01:18.5]} 20... b4 {[%clk 0:01:22]} 21. Ne2 {[%clk
0:01:11.9]} 21... bxa3 {[%clk 0:01:20.7]} 22. e4 {[%clk 0:01:08.4]} 22... Qb6
{[%clk 0:01:15]} 23. Bc3 {[%clk 0:01:04.9]} 23... Bb4 {[%clk 0:01:07.2]} 24.
exf5 {[%clk 0:01:00.4]} 24... Bxc3 {[%clk 0:01:05.3]} 25. fxe6+ {[%clk
0:00:59.1]} 25... Ke7 {[%clk 0:01:05.9]} 26. Qxc3 {[%clk 0:01:00.3]} 26... axb2
{[%clk 0:01:00.1]} 27. Nf4 {[%clk 0:00:59.1]} 27... Rhd8 {[%clk 0:00:48.4]} 28.
Qc5+ {[%clk 0:00:35.3]} 28... Qxc5 {[%clk 0:00:48.5]} 29. dxc5 {[%clk
0:00:37.2]} 29... Nb4 {[%clk 0:00:42.2]} 30. Rd4 {[%clk 0:00:33.8]} 30... a5
{[%clk 0:00:42.7]} 31. Re1 {[%clk 0:00:31.1]} 31... Rxc5 {[%clk 0:00:43]} 32.
Ng6+ {[%clk 0:00:31.4]} 32... Ke8 {[%clk 0:00:43.9]} 33. Kxb2 {[%clk 0:00:17.6]}
33... Nc2 {[%clk 0:00:42.3]} 34. Rf4 {[%clk 0:00:17.1]} 34... Rb8+ {[%clk
0:00:36.4]} 35. Ka2 {[%clk 0:00:18.5]} 35... Nb4+ {[%clk 0:00:25.2]} 36. Ka3
{[%clk 0:00:19.7]} 36... Nc2+ {[%clk 0:00:26.3]} 37. Ka4 {[%clk 0:00:21.1]}
37... Rc4+ {[%clk 0:00:26.8]} 38. Rxc4 {[%clk 0:00:22.2]} 38... dxc4 {[%clk
0:00:28.7]} 39. Rc1 {[%clk 0:00:23.4]} 39... Nd4 {[%clk 0:00:24.2]} 40. Rxc4
{[%clk 0:00:24]} 40... Nxe6 {[%clk 0:00:25.1]} 41. f4 {[%clk 0:00:23.5]} 41...
Ra8 {[%clk 0:00:16.8]} 42. f5 {[%clk 0:00:24.7]} 42... Nf8 {[%clk 0:00:16.7]}
43. Re4+ {[%clk 0:00:22]} 43... Kf7 {[%clk 0:00:17.2]} 44. Ne5+ {[%clk 0:00:22]}
44... Kg8 {[%clk 0:00:18]} 45. Rd4 {[%clk 0:00:21.4]} 45... Re8 {[%clk
0:00:18.6]} 46. Rd5 {[%clk 0:00:22.9]} 46... Re7 {[%clk 0:00:18.2]} 47. Kxa5
{[%clk 0:00:23.9]} 47... Rc7 {[%clk 0:00:17.5]} 48. Kb6 {[%clk 0:00:25]} 48...
Rc1 {[%clk 0:00:18.4]} 49. Nc6 {[%clk 0:00:26.3]} 49... Nd7+ {[%clk 0:00:18.2]}
50. Rxd7 {[%clk 0:00:27]} 50... Kh8 {[%clk 0:00:16.3]} 51. Rd8+ {[%clk
0:00:26.5]} 51... Kh7 {[%clk 0:00:17.4]} 52. g6+ {[%clk 0:00:28.4]} 52... Kh6
{[%clk 0:00:17.9]} 53. Rh8# {[%clk 0:00:30.3]} 1-0

[Event "*** Qualifier 2: Titled Tuesday 3|2 Blitz"]
[Site "Chess.com"]
[Date "2017.04.11"]
[Round "10"]
[White "wonderfultime"]
[Black "FancyPlaySyndrome"]
[Result "1-0"]
[WhiteElo "2653"]
[BlackElo "2395"]
[TimeControl "180+2"]
[EndTime "15:23:17 PDT"]
[Termination "wonderfultime won on time"]

1. d4 {[%clk 0:03:01.9]} 1... g6 {[%clk 0:03:00.5]} 2. g3 {[%clk 0:02:52.9]}
2... Bg7 {[%clk 0:03:01.8]} 3. Bg2 {[%clk 0:02:50]} 3... d6 {[%clk 0:03:02.1]}
4. Nf3 {[%clk 0:02:51.9]} 4... Nd7 {[%clk 0:03:03.1]} 5. O-O {[%clk 0:02:47.5]}
5... e5 {[%clk 0:03:03.4]} 6. c4 {[%clk 0:02:43.7]} 6... Ngf6 {[%clk 0:03:03.7]}
7. Nc3 {[%clk 0:02:45.3]} 7... O-O {[%clk 0:02:55.4]} 8. Qc2 {[%clk 0:02:43.9]}
8... Re8 {[%clk 0:02:55.4]} 9. Rd1 {[%clk 0:02:33.9]} 9... c6 {[%clk 0:02:54.5]}
10. b3 {[%clk 0:02:28.1]} 10... e4 {[%clk 0:02:51.7]} 11. Ng5 {[%clk 0:02:24]}
11... d5 {[%clk 0:02:52.9]} 12. cxd5 {[%clk 0:02:24.2]} 12... cxd5 {[%clk
0:02:54.8]} 13. Nb5 {[%clk 0:02:25.4]} 13... h6 {[%clk 0:02:46]} 14. Nh3 {[%clk
0:02:26.4]} 14... Re6 {[%clk 0:02:46.1]} 15. Qc7 {[%clk 0:02:16.6]} 15... Re8
{[%clk 0:02:32.5]} 16. Bf4 {[%clk 0:01:47.7]} 16... a6 {[%clk 0:02:14.1]} 17.
Qxd8 {[%clk 0:01:20.3]} 17... Rxd8 {[%clk 0:02:16]} 18. Bc7 {[%clk 0:01:18.1]}
18... Rf8 {[%clk 0:02:16.1]} 19. Nd6 {[%clk 0:01:19.2]} 19... Ne8 {[%clk
0:02:09.8]} 20. Nxe8 {[%clk 0:01:19.2]} 20... Rxe8 {[%clk 0:02:10.3]} 21. Rac1
{[%clk 0:01:17.7]} 21... g5 {[%clk 0:02:08.7]} 22. f3 {[%clk 0:01:12.9]} 22...
Nf6 {[%clk 0:02:09.3]} 23. Nf2 {[%clk 0:01:12.8]} 23... exf3 {[%clk 0:02:07.9]}
24. exf3 {[%clk 0:01:14.7]} 24... Bd7 {[%clk 0:02:00.3]} 25. Be5 {[%clk
0:00:58.6]} 25... Rac8 {[%clk 0:02:00.5]} 26. Nd3 {[%clk 0:00:58.5]} 26... Bb5
{[%clk 0:01:51.9]} 27. Nc5 {[%clk 0:00:52.4]} 27... b6 {[%clk 0:01:52]} 28. Nb7
{[%clk 0:00:27.5]} 28... Be2 {[%clk 0:01:21.8]} 29. Re1 {[%clk 0:00:26.9]} 29...
Rxc1 {[%clk 0:01:23.4]} 30. Rxc1 {[%clk 0:00:28.8]} 30... Re7 {[%clk 0:00:57.8]}
31. Nd6 {[%clk 0:00:28.2]} 31... Bd3 {[%clk 0:00:54.3]} 32. Bh3 {[%clk
0:00:28.3]} 32... h5 {[%clk 0:00:43.1]} 33. Rc6 {[%clk 0:00:22]} 33... g4 {[%clk
0:00:40.9]} 34. Bg2 {[%clk 0:00:21.8]} 34... Nh7 {[%clk 0:00:28.6]} 35. f4
{[%clk 0:00:21.2]} 35... f6 {[%clk 0:00:20.8]} 36. Bxd5+ {[%clk 0:00:19.9]}
36... Kh8 {[%clk 0:00:20.3]} 37. Nf7+ {[%clk 0:00:20.2]} 37... Rxf7 {[%clk
0:00:21.5]} 38. Bxf7 {[%clk 0:00:21.1]} 38... fxe5 {[%clk 0:00:22.9]} 39. dxe5
{[%clk 0:00:19.8]} 39... Bf8 {[%clk 0:00:24.3]} 40. Rc8 {[%clk 0:00:13.4]} 40...
Kg7 {[%clk 0:00:25.2]} 41. Bxh5 {[%clk 0:00:14.3]} 41... Bc5+ {[%clk 0:00:25.5]}
42. Kg2 {[%clk 0:00:15.9]} 42... Bf5 {[%clk 0:00:24.1]} 43. Rc7+ {[%clk
0:00:16.3]} 43... Kh6 {[%clk 0:00:23.9]} 44. Bf7 {[%clk 0:00:17.2]} 44... Nf8
{[%clk 0:00:24.2]} 45. Bd5 {[%clk 0:00:17.6]} 45... a5 {[%clk 0:00:20.1]} 46.
Rf7 {[%clk 0:00:18.1]} 46... Kg6 {[%clk 0:00:20]} 47. Rf6+ {[%clk 0:00:18.5]}
47... Kg7 {[%clk 0:00:21.9]} 48. Rxf5 {[%clk 0:00:20.4]} 48... Ng6 {[%clk
0:00:22.5]} 49. Rg5 {[%clk 0:00:21.3]} 1-0

[Event "*** Qualifier 2: Titled Tuesday 3|2 Blitz"]
[Site "Chess.com"]
[Date "2017.04.11"]
[Round "10"]
[White "EvgenyT"]
[Black "MITerryble"]
[Result "0-1"]
[WhiteElo "2558"]
[BlackElo "2664"]
[TimeControl "180+2"]
[EndTime "15:24:07 PDT"]
[Termination "MITerryble won by resignation"]

1. Nf3 {[%clk 0:03:00.6]} 1... Nf6 {[%clk 0:03:00.8]} 2. c4 {[%clk 0:03:01.7]}
2... e6 {[%clk 0:03:01.9]} 3. g3 {[%clk 0:03:02.4]} 3... b6 {[%clk 0:03:03.1]}
4. Bg2 {[%clk 0:03:03.4]} 4... Bb7 {[%clk 0:03:05]} 5. O-O {[%clk 0:03:05]} 5...
Be7 {[%clk 0:03:06.4]} 6. d4 {[%clk 0:03:06.1]} 6... O-O {[%clk 0:03:07.2]} 7.
Nc3 {[%clk 0:03:06.4]} 7... Ne4 {[%clk 0:03:08.1]} 8. Bd2 {[%clk 0:03:08]} 8...
Nxd2 {[%clk 0:03:08]} 9. Qxd2 {[%clk 0:03:08.3]} 9... d6 {[%clk 0:03:08.9]} 10.
d5 {[%clk 0:03:04.1]} 10... e5 {[%clk 0:03:07.5]} 11. e4 {[%clk 0:03:05.4]}
11... a5 {[%clk 0:03:08]} 12. Ne1 {[%clk 0:03:05.9]} 12... Na6 {[%clk
0:03:08.9]} 13. Nd3 {[%clk 0:03:06.3]} 13... Nc5 {[%clk 0:03:10.5]} 14. f4
{[%clk 0:03:05.8]} 14... Nxd3 {[%clk 0:03:06.7]} 15. Qxd3 {[%clk 0:03:06.8]}
15... Bf6 {[%clk 0:03:08.5]} 16. f5 {[%clk 0:03:04.5]} 16... h5 {[%clk
0:02:58.4]} 17. h4 {[%clk 0:03:03.4]} 17... Bc8 {[%clk 0:02:55.4]} 18. Bf3
{[%clk 0:03:01.4]} 18... g6 {[%clk 0:02:56.2]} 19. Kg2 {[%clk 0:02:59.3]} 19...
Kg7 {[%clk 0:02:55.6]} 20. Rh1 {[%clk 0:03:00.6]} 20... Bd7 {[%clk 0:02:56.5]}
21. Nd1 {[%clk 0:02:53.6]} 21... Rh8 {[%clk 0:02:57.1]} 22. Ne3 {[%clk
0:02:53.8]} 22... Qe7 {[%clk 0:02:51.8]} 23. Rag1 {[%clk 0:02:53.9]} 23... Rh7
{[%clk 0:02:50.6]} 24. Rh2 {[%clk 0:02:51.4]} 24... Rah8 {[%clk 0:02:51.2]} 25.
Rgh1 {[%clk 0:02:52.6]} 25... Kg8 {[%clk 0:02:44.7]} 26. Kf1 {[%clk 0:02:51.4]}
26... Rg7 {[%clk 0:02:36.4]} 27. g4 {[%clk 0:02:11.3]} 27... hxg4 {[%clk
0:02:34.7]} 28. Bxg4 {[%clk 0:02:10.9]} 28... Rgh7 {[%clk 0:00:44.8]} 29. h5
{[%clk 0:01:37.4]} 29... Bg5 {[%clk 0:00:41.9]} 30. Ke2 {[%clk 0:01:31.9]} 30...
gxh5 {[%clk 0:00:38]} 31. Rxh5 {[%clk 0:01:18.7]} 31... Rxh5 {[%clk 0:00:37.9]}
32. Rxh5 {[%clk 0:01:20.3]} 32... Rxh5 {[%clk 0:00:38.1]} 33. Bxh5 {[%clk
0:01:21.9]} 33... Bxe3 {[%clk 0:00:29.3]} 34. Qxe3 {[%clk 0:01:21.6]} 34... Qh4
{[%clk 0:00:30.8]} 35. Qg1+ {[%clk 0:00:39]} 35... Kf8 {[%clk 0:00:29.5]} 36.
Bf3 {[%clk 0:00:39.8]} 36... f6 {[%clk 0:00:29.3]} 37. b3 {[%clk 0:00:39.2]}
37... Be8 {[%clk 0:00:28.1]} 38. Qe3 {[%clk 0:00:33.2]} 38... Qh2+ {[%clk
0:00:26.9]} 39. Qf2 {[%clk 0:00:34.1]} 39... Qh6 {[%clk 0:00:26.2]} 40. Qe3
{[%clk 0:00:29.8]} 40... Qxe3+ {[%clk 0:00:24.9]} 41. Kxe3 {[%clk 0:00:31]}
41... Kg7 {[%clk 0:00:26.8]} 42. Kf2 {[%clk 0:00:30.6]} 42... Kh6 {[%clk
0:00:28.7]} 43. Kg3 {[%clk 0:00:32.1]} 43... Kg5 {[%clk 0:00:30.2]} 44. Be2
{[%clk 0:00:29.1]} 44... a4 {[%clk 0:00:30]} 45. b4 {[%clk 0:00:21.5]} 45... a3
{[%clk 0:00:24.6]} 46. b5 {[%clk 0:00:22.6]} 46... Bf7 {[%clk 0:00:25.5]} 47.
Bf3 {[%clk 0:00:23.4]} 47... Bg8 {[%clk 0:00:26.4]} 48. Be2 {[%clk 0:00:24.3]}
48... Bh7 {[%clk 0:00:27.4]} 49. Bf3 {[%clk 0:00:20.4]} 49... Bxf5 {[%clk
0:00:21.5]} 50. exf5 {[%clk 0:00:20.6]} 50... Kxf5 {[%clk 0:00:23.4]} 51. Bg4+
{[%clk 0:00:11.2]} 51... Ke4 {[%clk 0:00:24.2]} 52. Bh5 {[%clk 0:00:02.2]} 52...
Kd3 {[%clk 0:00:17.9]} 53. Kg4 {[%clk 0:00:03.5]} 53... Kxc4 {[%clk 0:00:17.4]}
54. Kf5 {[%clk 0:00:04.7]} 54... Kxb5 {[%clk 0:00:17.1]} 55. Kxf6 {[%clk
0:00:04.7]} 55... Kc5 {[%clk 0:00:19]} 56. Ke6 {[%clk 0:00:05.9]} 56... b5
{[%clk 0:00:19.6]} 57. Bd1 {[%clk 0:00:05.6]} 57... b4 {[%clk 0:00:19.9]} 58.
Bc2 {[%clk 0:00:06.7]} 58... Kd4 {[%clk 0:00:18]} 59. Kd7 {[%clk 0:00:05]} 59...
e4 {[%clk 0:00:19]} 60. Kxc7 {[%clk 0:00:05]} 60... e3 {[%clk 0:00:20.2]} 0-1